[Event "Titled Tuesday Blitz April 25 Late 2023"]
[White "Kraus, Tomas"]
[Black "Jovic, Stanoje"]
[WhiteFideId "331708"]
[BlackFideId "905020"]
[WhiteElo "2389"]
[BlackElo "2236"]
[Result "0-1"]
[Round "06"]
[TimeControl "180+2"]
[Date "2023.04.25"]
[WhiteClock "0:00:02"]
[BlackClock "0:00:06"]

1. d4 {[%clk 0:02:54]}  Nf6 {[%clk 0:02:58]} 2. c4 {[%clk 0:02:54]}  e6 {[%clk 0:02:59]} 3. Nf3 {[%clk 0:02:52]}  b6 {[%clk 0:02:58]} 4. Nc3 {[%clk 0:02:45]}  Bb4 {[%clk 0:02:51]} 5. Qb3 {[%clk 0:02:42]}  a5 {[%clk 0:02:49]} 6. a3 {[%clk 0:02:40]}  Bxc3+ {[%clk 0:02:48]} 7. Qxc3 {[%clk 0:02:41]}  a4 {[%clk 0:02:47]} 8. Bg5 {[%clk 0:02:41]}  d6 {[%clk 0:02:47]} 9. e3 {[%clk 0:02:21]}  Bb7 {[%clk 0:02:42]} 10. Bd3 {[%clk 0:02:21]}  Nbd7 {[%clk 0:02:40]} 11. O-O-O {[%clk 0:02:19]}  h6 {[%clk 0:02:35]} 12. Bh4 {[%clk 0:02:19]}  g5 {[%clk 0:02:33]} 13. Bg3 {[%clk 0:02:19]}  g4 {[%clk 0:02:33]} 14. Nh4 {[%clk 0:02:09]}  Ne4 {[%clk 0:02:26]} 15. Qc2 {[%clk 0:02:07]}  f5 {[%clk 0:02:21]} 16. f3 {[%clk 0:02:02]}  gxf3 {[%clk 0:02:16]} 17. gxf3 {[%clk 0:02:00]}  Ng5 {[%clk 0:02:14]} 18. e4 {[%clk 0:01:57]}  Qf6 {[%clk 0:01:48]} 19. exf5 {[%clk 0:01:49]}  O-O-O {[%clk 0:01:43]} 20. Qxa4 {[%clk 0:01:27]}  exf5 {[%clk 0:01:34]} 21. Bxf5 {[%clk 0:01:23]}  Nxf3 {[%clk 0:01:23]} 22. Rhf1 {[%clk 0:00:57]}  Qg5+ {[%clk 0:01:13]} 23. Kb1 {[%clk 0:00:55]}  Nxh4 {[%clk 0:01:10]} 24. Bxd7+ {[%clk 0:00:45]}  Rxd7 {[%clk 0:01:07]} 25. c5 {[%clk 0:00:46]}  dxc5 {[%clk 0:00:33]} 26. dxc5 {[%clk 0:00:45]}  Rxd1+ {[%clk 0:00:32]} 27. Rxd1 {[%clk 0:00:41]}  Nf5 {[%clk 0:00:27]} 28. c6 {[%clk 0:00:39]}  Kb8 {[%clk 0:00:15]} 29. Bxc7+ {[%clk 0:00:24]}  Kc8 {[%clk 0:00:09]} 30. cxb7+ {[%clk 0:00:21]}  Kxb7 {[%clk 0:00:10]} 31. Be5 {[%clk 0:00:17]}  Rh7 {[%clk 0:00:06]} 32. Qe4+ {[%clk 0:00:12]}  Ka7 {[%clk 0:00:05]} 33. Rd8 {[%clk 0:00:11]}  Qxd8 {[%clk 0:00:04]} 34. Qxf5 {[%clk 0:00:05]}  Qd1+ {[%clk 0:00:04]} 35. Ka2 {[%clk 0:00:05]}  Qd5+ {[%clk 0:00:04]} 36. Kb1 {[%clk 0:00:05]}  Rd7 {[%clk 0:00:04]} 37. h4 {[%clk 0:00:04]}  Qd3+ {[%clk 0:00:05]} 38. Qxd3 {[%clk 0:00:03]}  Rxd3 {[%clk 0:00:05]} 39. Bg7 {[%clk 0:00:03]}  h5 {[%clk 0:00:05]} 40. Bf6 {[%clk 0:00:03]}  b5 {[%clk 0:00:06]} 41. Kc2 {[%clk 0:00:03]}  Rf3 {[%clk 0:00:06]} 42. Bg5 {[%clk 0:00:02]}  Kb6 {[%clk 0:00:07]} 43. b3 {[%clk 0:00:02]}  Kc5 {[%clk 0:00:07]} 44. Kb2 {[%clk 0:00:02]}  Kd4 {[%clk 0:00:07]} 45. Kc2 {[%clk 0:00:03]}  Rf2+ {[%clk 0:00:07]} 46. Kb1 {[%clk 0:00:01]}  Kc3 {[%clk 0:00:07]} 47. a4 {[%clk 0:00:01]}  Kxb3 {[%clk 0:00:07]} 48. axb5 {[%clk 0:00:01]}  Rf1+ {[%clk 0:00:06]} 49. Bc1 {[%clk 0:00:02]}  Rf5 {[%clk 0:00:07]} 50. b6 {[%clk 0:00:01]}  Rb5 {[%clk 0:00:07]} 51. Be3 {[%clk 0:00:02]}  Kc3+ {[%clk 0:00:07]} 52. Kc1 {[%clk 0:00:02]}  Kd3 {[%clk 0:00:07]} 53. Bg5 {[%clk 0:00:03]}  Rxb6 {[%clk 0:00:07]} 54. Be7 {[%clk 0:00:02]}  Re6 {[%clk 0:00:07]} 55. Bg5 {[%clk 0:00:02]}  Re1+ {[%clk 0:00:06]} 56. Kb2 {[%clk 0:00:02]}  Re2+ {[%clk 0:00:06]} 57. Kc1 {[%clk 0:00:02]}  Ke4 {[%clk 0:00:07]} 58. Kd1 {[%clk 0:00:02]}  Kf3 {[%clk 0:00:07]} 59. Bf6 {[%clk 0:00:02]}  Re4 {[%clk 0:00:07]} 60. Bd8 {[%clk 0:00:02]}  Rd4+ {[%clk 0:00:06]} 0-1


[Site "https://www.chess.com"]

[Event "Titled Tuesday Blitz April 25 Late 2023"]
[White "Narva, Triin"]
[Black "Mazurkiewicz, Michal"]
[WhiteFideId "4502680"]
[BlackFideId "1124943"]
[WhiteElo "1944"]
[BlackElo "2054"]
[Result "1-0"]
[Round "06"]
[TimeControl "180+2"]
[Date "2023.04.25"]
[WhiteClock "0:00:13"]
[BlackClock "0:00:12"]

1. e4 {[%clk 0:03:00]}  d6 {[%clk 0:02:59]} 2. d4 {[%clk 0:03:00]}  Nf6 {[%clk 0:02:59]} 3. Nc3 {[%clk 0:02:59]}  c6 {[%clk 0:02:59]} 4. f4 {[%clk 0:02:57]}  Qb6 {[%clk 0:02:59]} 5. Nf3 {[%clk 0:02:40]}  Bg4 {[%clk 0:02:59]} 6. Be2 {[%clk 0:02:29]}  e6 {[%clk 0:02:57]} 7. e5 {[%clk 0:02:03]}  Nd5 {[%clk 0:02:56]} 8. Nxd5 {[%clk 0:02:00]}  cxd5 {[%clk 0:02:55]} 9. O-O {[%clk 0:02:00]}  Nc6 {[%clk 0:02:55]} 10. c3 {[%clk 0:02:01]}  Bxf3 {[%clk 0:02:53]} 11. Bxf3 {[%clk 0:02:01]}  dxe5 {[%clk 0:02:53]} 12. fxe5 {[%clk 0:02:00]}  Nxe5 {[%clk 0:02:53]} 13. Bxd5 {[%clk 0:01:53]}  exd5 {[%clk 0:02:33]} 14. Qe2 {[%clk 0:01:53]}  O-O-O {[%clk 0:01:59]} 15. Qxe5 {[%clk 0:01:50]}  f6 {[%clk 0:01:58]} 16. Qg3 {[%clk 0:01:43]}  g6 {[%clk 0:01:42]} 17. a4 {[%clk 0:01:18]}  Bd6 {[%clk 0:01:30]} 18. Qf3 {[%clk 0:01:17]}  f5 {[%clk 0:01:27]} 19. Bg5 {[%clk 0:01:12]}  Rd7 {[%clk 0:01:16]} 20. b4 {[%clk 0:01:02]}  Re8 {[%clk 0:00:54]} 21. b5 {[%clk 0:00:38]}  Re4 {[%clk 0:00:49]} 22. Qd3 {[%clk 0:00:29]}  Qc7 {[%clk 0:00:47]} 23. h3 {[%clk 0:00:22]}  Qc4 {[%clk 0:00:44]} 24. Qxc4+ {[%clk 0:00:15]}  dxc4 {[%clk 0:00:45]} 25. Rae1 {[%clk 0:00:15]}  Ba3 {[%clk 0:00:22]} 26. Rxe4 {[%clk 0:00:15]}  fxe4 {[%clk 0:00:23]} 27. Re1 {[%clk 0:00:15]}  Bb2 {[%clk 0:00:22]} 28. Rxe4 {[%clk 0:00:14]}  Rd5 {[%clk 0:00:14]} 29. Re8+ {[%clk 0:00:13]}  Kd7 {[%clk 0:00:15]} 30. Rd8+ {[%clk 0:00:13]}  Ke6 {[%clk 0:00:15]} 31. Rxd5 {[%clk 0:00:14]}  Kxd5 {[%clk 0:00:15]} 32. Bd2 {[%clk 0:00:14]}  Ke4 {[%clk 0:00:14]} 33. Kf2 {[%clk 0:00:15]}  Kd3 {[%clk 0:00:14]} 34. Be1 {[%clk 0:00:14]}  Ba3 {[%clk 0:00:15]} 35. Kf3 {[%clk 0:00:14]}  Kc2 {[%clk 0:00:15]} 36. Ke4 {[%clk 0:00:14]}  Kb3 {[%clk 0:00:15]} 37. Kd5 {[%clk 0:00:14]}  Bf8 {[%clk 0:00:13]} 38. a5 {[%clk 0:00:14]}  Ka4 {[%clk 0:00:12]} 39. a6 {[%clk 0:00:13]}  bxa6 {[%clk 0:00:11]} 40. bxa6 {[%clk 0:00:13]}  Kb5 {[%clk 0:00:12]} 41. Bd2 {[%clk 0:00:12]}  Be7 {[%clk 0:00:12]} 42. g4 {[%clk 0:00:13]}  Ba3 {[%clk 0:00:12]} 43. Ke6 {[%clk 0:00:12]}  Kxa6 {[%clk 0:00:12]} 44. d5 {[%clk 0:00:13]}  Kb7 {[%clk 0:00:12]} 45. d6 {[%clk 0:00:12]}  Kc6 {[%clk 0:00:10]} 46. d7 {[%clk 0:00:13]}  Bc5 {[%clk 0:00:11]} 47. d8=Q {[%clk 0:00:12]}  Bb6 {[%clk 0:00:11]} 48. Qd7+ {[%clk 0:00:12]}  Kc5 {[%clk 0:00:12]} 49. Be3# {[%clk 0:00:13]} 1-0


[Site "https://www.chess.com"]

[Event "Titled Tuesday Blitz April 25 Late 2023"]
[White "Srinath, Rao S.V."]
[Black "Schuster, Karsten"]
[WhiteFideId "5028876"]
[BlackFideId "4611071"]
[WhiteElo "2196"]
[BlackElo "2294"]
[Result "0-1"]
[Round "06"]
[TimeControl "180+2"]
[Date "2023.04.25"]
[WhiteClock "0:00:10"]
[BlackClock "0:00:35"]

1. e4 {[%clk 0:03:00]}  d5 {[%clk 0:02:59]} 2. exd5 {[%clk 0:03:00]}  Qxd5 {[%clk 0:03:00]} 3. Nc3 {[%clk 0:02:59]}  Qd6 {[%clk 0:03:01]} 4. d4 {[%clk 0:02:59]}  c6 {[%clk 0:03:01]} 5. Nf3 {[%clk 0:02:59]}  Bg4 {[%clk 0:03:01]} 6. h3 {[%clk 0:02:57]}  Bxf3 {[%clk 0:03:01]} 7. Qxf3 {[%clk 0:02:54]}  Nf6 {[%clk 0:03:01]} 8. Be3 {[%clk 0:02:49]}  e6 {[%clk 0:03:01]} 9. O-O-O {[%clk 0:02:49]}  Nbd7 {[%clk 0:03:00]} 10. Bd3 {[%clk 0:02:42]}  Be7 {[%clk 0:02:57]} 11. g4 {[%clk 0:02:41]}  Nd5 {[%clk 0:02:56]} 12. Nxd5 {[%clk 0:02:34]}  cxd5 {[%clk 0:02:56]} 13. Kb1 {[%clk 0:02:31]}  a6 {[%clk 0:02:51]} 14. Rhe1 {[%clk 0:02:23]}  Rc8 {[%clk 0:02:41]} 15. Qe2 {[%clk 0:02:22]}  Nb6 {[%clk 0:02:37]} 16. f4 {[%clk 0:02:21]}  Nc4 {[%clk 0:02:37]} 17. Bxc4 {[%clk 0:02:20]}  Rxc4 {[%clk 0:02:35]} 18. f5 {[%clk 0:02:20]}  O-O {[%clk 0:02:28]} 19. Bc1 {[%clk 0:02:03]}  Rfc8 {[%clk 0:02:22]} 20. c3 {[%clk 0:01:56]}  R4c6 {[%clk 0:02:16]} 21. g5 {[%clk 0:01:48]}  Bf8 {[%clk 0:02:12]} 22. fxe6 {[%clk 0:01:42]}  fxe6 {[%clk 0:02:11]} 23. Qe5 {[%clk 0:01:40]}  Qxe5 {[%clk 0:02:10]} 24. Rxe5 {[%clk 0:01:40]}  g6 {[%clk 0:02:08]} 25. Rde1 {[%clk 0:01:40]}  Kf7 {[%clk 0:02:04]} 26. Rf1+ {[%clk 0:01:39]}  Ke7 {[%clk 0:02:02]} 27. b3 {[%clk 0:01:29]}  Bg7 {[%clk 0:02:02]} 28. Ba3+ {[%clk 0:01:29]}  Ke8 {[%clk 0:01:59]} 29. Re3 {[%clk 0:01:13]}  e5 {[%clk 0:01:57]} 30. dxe5 {[%clk 0:00:53]}  Rxc3 {[%clk 0:01:55]} 31. Rxc3 {[%clk 0:00:52]}  Rxc3 {[%clk 0:01:55]} 32. e6 {[%clk 0:00:52]}  Rc7 {[%clk 0:01:15]} 33. Bd6 {[%clk 0:00:46]}  Rc6 {[%clk 0:01:11]} 34. Rf7 {[%clk 0:00:25]}  Rxd6 {[%clk 0:01:11]} 35. Rxg7 {[%clk 0:00:25]}  b5 {[%clk 0:01:06]} 36. e7 {[%clk 0:00:20]}  Re6 {[%clk 0:01:01]} 37. Rxh7 {[%clk 0:00:20]}  Rxe7 {[%clk 0:01:00]} 38. Rh6 {[%clk 0:00:19]}  Re6 {[%clk 0:00:59]} 39. Rh8+ {[%clk 0:00:20]}  Kd7 {[%clk 0:00:59]} 40. Ra8 {[%clk 0:00:20]}  Rd6 {[%clk 0:00:58]} 41. Ra7+ {[%clk 0:00:19]}  Ke6 {[%clk 0:00:58]} 42. h4 {[%clk 0:00:17]}  Kf5 {[%clk 0:00:57]} 43. Rh7 {[%clk 0:00:17]}  d4 {[%clk 0:00:56]} 44. Kc2 {[%clk 0:00:17]}  Ke4 {[%clk 0:00:54]} 45. Re7+ {[%clk 0:00:16]}  Kd5 {[%clk 0:00:52]} 46. Kd3 {[%clk 0:00:16]}  Kc5 {[%clk 0:00:51]} 47. Re5+ {[%clk 0:00:16]}  Kb4 {[%clk 0:00:50]} 48. Re4 {[%clk 0:00:15]}  Ka3 {[%clk 0:00:50]} 49. Rxd4 {[%clk 0:00:15]}  Re6 {[%clk 0:00:47]} 50. Re4 {[%clk 0:00:14]}  Rc6 {[%clk 0:00:41]} 51. b4 {[%clk 0:00:11]}  Kxa2 {[%clk 0:00:40]} 52. Kd4 {[%clk 0:00:11]}  Kb3 {[%clk 0:00:38]} 53. Kd5 {[%clk 0:00:11]}  Rc4 {[%clk 0:00:38]} 54. Rxc4 {[%clk 0:00:10]}  bxc4 {[%clk 0:00:38]} 55. h5 {[%clk 0:00:11]}  c3 {[%clk 0:00:34]} 56. hxg6 {[%clk 0:00:10]}  c2 {[%clk 0:00:35]} 57. g7 {[%clk 0:00:10]}  c1=Q {[%clk 0:00:35]} 0-1


[Site "https://www.chess.com"]

[Event "Titled Tuesday Blitz April 25 Late 2023"]
[White "Toniutti, Ezio"]
[Black "Eidelman, Gabriel"]
[WhiteFideId "113034"]
[BlackFideId "30910544"]
[WhiteElo "2215"]
[BlackElo "2209"]
[Result "1-0"]
[Round "06"]
[TimeControl "180+2"]
[Date "2023.04.25"]
[WhiteClock "0:02:15"]
[BlackClock "0:00:19"]

1. d4 {[%clk 0:03:00]}  b6 {[%clk 0:02:56]} 2. e4 {[%clk 0:03:00]}  Bb7 {[%clk 0:02:54]} 3. Bd3 {[%clk 0:03:00]}  Nf6 {[%clk 0:02:52]} 4. Qe2 {[%clk 0:02:58]}  e6 {[%clk 0:02:50]} 5. Nf3 {[%clk 0:02:57]}  d5 {[%clk 0:02:50]} 6. Nbd2 {[%clk 0:02:56]}  dxe4 {[%clk 0:02:42]} 7. Nxe4 {[%clk 0:02:55]}  Nxe4 {[%clk 0:02:43]} 8. Bxe4 {[%clk 0:02:55]}  Bxe4 {[%clk 0:02:43]} 9. Qxe4 {[%clk 0:02:56]}  Nd7 {[%clk 0:02:43]} 10. O-O {[%clk 0:02:54]}  Nf6 {[%clk 0:02:40]} 11. Qe2 {[%clk 0:02:52]}  Bd6 {[%clk 0:02:39]} 12. Bg5 {[%clk 0:02:52]}  O-O {[%clk 0:02:37]} 13. c4 {[%clk 0:02:52]}  c5 {[%clk 0:02:24]} 14. Rad1 {[%clk 0:02:50]}  Qe7 {[%clk 0:02:10]} 15. Rfe1 {[%clk 0:02:43]}  cxd4 {[%clk 0:01:35]} 16. Nxd4 {[%clk 0:02:40]}  Rfe8 {[%clk 0:01:33]} 17. Qf3 {[%clk 0:02:34]}  Bc5 {[%clk 0:01:20]} 18. Nf5 {[%clk 0:02:31]}  Qf8 {[%clk 0:00:32]} 19. Nxg7 {[%clk 0:02:28]}  Qxg7 {[%clk 0:00:28]} 20. Bxf6 {[%clk 0:02:28]}  Qg6 {[%clk 0:00:29]} 21. Re4 {[%clk 0:02:23]}  h5 {[%clk 0:00:20]} 22. Rh4 {[%clk 0:02:17]}  Be7 {[%clk 0:00:19]} 23. Bxe7 {[%clk 0:02:15]} 1-0


[Site "https://www.chess.com"]

[Event "Titled Tuesday Blitz April 25 Late 2023"]
[White "Marchesich, Giovanni"]
[Black "Alexikov, Alexander"]
[WhiteFideId "2824790"]
[BlackFideId "14103958"]
[WhiteElo "2209"]
[BlackElo "2186"]
[Result "0-1"]
[Round "06"]
[TimeControl "180+2"]
[Date "2023.04.25"]
[WhiteClock "0:00:29"]
[BlackClock "0:00:44"]

1. d4 {[%clk 0:03:00]}  Nf6 {[%clk 0:02:58]} 2. Nf3 {[%clk 0:03:00]}  g6 {[%clk 0:02:58]} 3. Nc3 {[%clk 0:02:58]}  Bg7 {[%clk 0:02:58]} 4. e4 {[%clk 0:02:58]}  d6 {[%clk 0:02:58]} 5. Be3 {[%clk 0:02:57]}  O-O {[%clk 0:02:57]} 6. Qd2 {[%clk 0:02:57]}  c6 {[%clk 0:02:57]} 7. Bd3 {[%clk 0:02:52]}  Ng4 {[%clk 0:02:51]} 8. Bg5 {[%clk 0:02:51]}  h6 {[%clk 0:02:51]} 9. Bh4 {[%clk 0:02:51]}  Nd7 {[%clk 0:02:30]} 10. h3 {[%clk 0:02:51]}  Ngf6 {[%clk 0:02:29]} 11. O-O {[%clk 0:02:46]}  e5 {[%clk 0:02:26]} 12. Bg3 {[%clk 0:02:41]}  Qe7 {[%clk 0:02:25]} 13. Bh2 {[%clk 0:02:38]}  a6 {[%clk 0:02:24]} 14. a4 {[%clk 0:02:38]}  b6 {[%clk 0:02:15]} 15. d5 {[%clk 0:02:28]}  cxd5 {[%clk 0:02:13]} 16. exd5 {[%clk 0:02:26]}  Bb7 {[%clk 0:02:12]} 17. Rae1 {[%clk 0:02:24]}  Rfe8 {[%clk 0:02:01]} 18. Nd4 {[%clk 0:02:23]}  Nxd5 {[%clk 0:01:50]} 19. Be4 {[%clk 0:02:08]}  N7f6 {[%clk 0:01:45]} 20. Nxd5 {[%clk 0:02:05]}  Nxd5 {[%clk 0:01:41]} 21. c4 {[%clk 0:02:03]}  Nf6 {[%clk 0:01:32]} 22. Bxb7 {[%clk 0:01:33]}  Qxb7 {[%clk 0:01:31]} 23. Nb3 {[%clk 0:01:28]}  Rad8 {[%clk 0:01:30]} 24. f4 {[%clk 0:01:22]}  Ne4 {[%clk 0:01:25]} 25. Qe3 {[%clk 0:01:17]}  f5 {[%clk 0:01:25]} 26. Rd1 {[%clk 0:01:15]}  Qc6 {[%clk 0:01:23]} 27. Qd3 {[%clk 0:01:12]}  Qxa4 {[%clk 0:01:15]} 28. Qd5+ {[%clk 0:01:09]}  Kh7 {[%clk 0:01:13]} 29. Nc1 {[%clk 0:01:03]}  Qc2 {[%clk 0:01:06]} 30. Nd3 {[%clk 0:00:59]}  Nf6 {[%clk 0:00:58]} 31. Qc6 {[%clk 0:00:51]}  e4 {[%clk 0:00:56]} 32. Nb4 {[%clk 0:00:47]}  Qxb2 {[%clk 0:00:56]} 33. Rb1 {[%clk 0:00:45]}  Qd4+ {[%clk 0:00:54]} 34. Kh1 {[%clk 0:00:45]}  Qc5 {[%clk 0:00:53]} 35. Bg1 {[%clk 0:00:39]}  e3 {[%clk 0:00:51]} 36. Qxc5 {[%clk 0:00:36]}  dxc5 {[%clk 0:00:50]} 37. Nxa6 {[%clk 0:00:36]}  Rd6 {[%clk 0:00:49]} 38. Nc7 {[%clk 0:00:35]}  Re7 {[%clk 0:00:48]} 39. Nb5 {[%clk 0:00:34]}  Rde6 {[%clk 0:00:48]} 40. Rfe1 {[%clk 0:00:34]}  Nh5 {[%clk 0:00:46]} 41. Nc3 {[%clk 0:00:29]}  Bxc3 {[%clk 0:00:44]} 0-1


[Site "https://www.chess.com"]

[Event "Titled Tuesday Blitz April 25 Late 2023"]
[White "Osmonbekov, Talaibek"]
[Black "Novikova, Galina"]
[WhiteFideId "2017253"]
[BlackFideId "4157095"]
[WhiteElo "2135"]
[BlackElo "1953"]
[Result "0-1"]
[Round "06"]
[TimeControl "180+2"]
[Date "2023.04.25"]
[WhiteClock "0:00:02"]
[BlackClock "0:00:01"]

1. d4 {[%clk 0:03:00]}  Nf6 {[%clk 0:02:56]} 2. Bf4 {[%clk 0:02:59]}  g6 {[%clk 0:02:56]} 3. Nc3 {[%clk 0:02:59]}  Bg7 {[%clk 0:02:57]} 4. e4 {[%clk 0:03:00]}  d6 {[%clk 0:02:57]} 5. Qd2 {[%clk 0:03:00]}  c6 {[%clk 0:02:55]} 6. O-O-O {[%clk 0:02:59]}  b5 {[%clk 0:02:52]} 7. f3 {[%clk 0:02:59]}  a5 {[%clk 0:02:51]} 8. h4 {[%clk 0:02:49]}  a4 {[%clk 0:02:50]} 9. g4 {[%clk 0:02:48]}  b4 {[%clk 0:02:50]} 10. Nce2 {[%clk 0:02:47]}  b3 {[%clk 0:02:50]} 11. a3 {[%clk 0:02:44]}  bxc2 {[%clk 0:02:50]} 12. Qxc2 {[%clk 0:02:44]}  Ba6 {[%clk 0:02:28]} 13. Nh3 {[%clk 0:02:41]}  Nbd7 {[%clk 0:02:25]} 14. Nc3 {[%clk 0:02:35]}  Bxf1 {[%clk 0:02:23]} 15. Rhxf1 {[%clk 0:02:35]}  Qb6 {[%clk 0:02:09]} 16. Nxa4 {[%clk 0:02:21]}  Qb7 {[%clk 0:02:09]} 17. Nc3 {[%clk 0:02:17]}  Nb6 {[%clk 0:01:51]} 18. e5 {[%clk 0:02:05]}  Nfd5 {[%clk 0:01:45]} 19. exd6 {[%clk 0:02:02]}  Nxf4 {[%clk 0:01:43]} 20. Nxf4 {[%clk 0:01:59]}  O-O {[%clk 0:01:36]} 21. h5 {[%clk 0:01:46]}  exd6 {[%clk 0:01:35]} 22. hxg6 {[%clk 0:01:43]}  hxg6 {[%clk 0:01:36]} 23. Rh1 {[%clk 0:01:42]}  Nc4 {[%clk 0:01:22]} 24. Ne4 {[%clk 0:01:38]}  Rab8 {[%clk 0:01:02]} 25. Nd3 {[%clk 0:01:01]}  Rfe8 {[%clk 0:00:37]} 26. Qh2 {[%clk 0:00:41]}  Bxd4 {[%clk 0:00:16]} 27. Qh7+ {[%clk 0:00:23]}  Kf8 {[%clk 0:00:16]} 28. Nb4 {[%clk 0:00:23]}  Bg7 {[%clk 0:00:12]} 29. Nxd6 {[%clk 0:00:17]}  Nxd6 {[%clk 0:00:13]} 30. Rxd6 {[%clk 0:00:16]}  c5 {[%clk 0:00:13]} 31. Nd3 {[%clk 0:00:16]}  Qb5 {[%clk 0:00:12]} 32. Qh2 {[%clk 0:00:13]}  c4 {[%clk 0:00:12]} 33. Nb4 {[%clk 0:00:12]}  Be5 {[%clk 0:00:05]} 34. Qh6+ {[%clk 0:00:08]}  Bg7 {[%clk 0:00:06]} 35. Qf4 {[%clk 0:00:07]}  Be5 {[%clk 0:00:03]} 36. Qh6+ {[%clk 0:00:06]}  Bg7 {[%clk 0:00:04]} 37. Qd2 {[%clk 0:00:05]}  Rbc8 {[%clk 0:00:03]} 38. Qc2 {[%clk 0:00:02]}  c3 {[%clk 0:00:03]} 39. b3 {[%clk 0:00:02]}  Re2 {[%clk 0:00:01]} 0-1


[Site "https://www.chess.com"]

[Event "Titled Tuesday Blitz April 25 Late 2023"]
[White "Nery Junior, Jose Antonio"]
[Black "Zakarian, David"]
[WhiteFideId "2104822"]
[BlackFideId "13301276"]
[WhiteElo "2197"]
[BlackElo "2306"]
[Result "0-1"]
[Round "06"]
[TimeControl "180+2"]
[Date "2023.04.25"]
[WhiteClock "0:00:01"]
[BlackClock "0:00:10"]

1. e4 {[%clk 0:03:00]}  Nc6 {[%clk 0:02:59]} 2. Nf3 {[%clk 0:03:01]}  d6 {[%clk 0:02:59]} 3. d4 {[%clk 0:02:56]}  Nf6 {[%clk 0:03:00]} 4. Nc3 {[%clk 0:02:55]}  Bg4 {[%clk 0:03:00]} 5. Be2 {[%clk 0:02:54]}  e6 {[%clk 0:03:00]} 6. h3 {[%clk 0:02:54]}  Bh5 {[%clk 0:02:59]} 7. O-O {[%clk 0:02:52]}  d5 {[%clk 0:02:55]} 8. e5 {[%clk 0:02:52]}  Nd7 {[%clk 0:02:55]} 9. Be3 {[%clk 0:02:46]}  Be7 {[%clk 0:02:55]} 10. Nh2 {[%clk 0:02:40]}  Bg6 {[%clk 0:02:52]} 11. f4 {[%clk 0:02:29]}  Nb4 {[%clk 0:02:52]} 12. Rc1 {[%clk 0:02:25]}  c5 {[%clk 0:02:52]} 13. a3 {[%clk 0:02:19]}  Nc6 {[%clk 0:02:51]} 14. Nf3 {[%clk 0:01:58]}  Rc8 {[%clk 0:02:44]} 15. Nb5 {[%clk 0:01:56]}  a6 {[%clk 0:02:43]} 16. Nd6+ {[%clk 0:01:56]}  Bxd6 {[%clk 0:02:43]} 17. exd6 {[%clk 0:01:56]}  cxd4 {[%clk 0:02:44]} 18. Nxd4 {[%clk 0:01:54]}  Nxd4 {[%clk 0:02:30]} 19. Bxd4 {[%clk 0:01:54]}  O-O {[%clk 0:02:29]} 20. Bd3 {[%clk 0:01:53]}  Nf6 {[%clk 0:02:14]} 21. Be5 {[%clk 0:01:44]}  Ne8 {[%clk 0:02:09]} 22. f5 {[%clk 0:01:40]}  exf5 {[%clk 0:02:09]} 23. Bxf5 {[%clk 0:01:31]}  Bxf5 {[%clk 0:02:08]} 24. Rxf5 {[%clk 0:01:32]}  Nxd6 {[%clk 0:02:08]} 25. Rf3 {[%clk 0:00:57]}  Ne4 {[%clk 0:01:54]} 26. Kh1 {[%clk 0:00:53]}  Re8 {[%clk 0:01:37]} 27. Bd4 {[%clk 0:00:49]}  Qh4 {[%clk 0:01:35]} 28. Qd3 {[%clk 0:00:41]}  Rc6 {[%clk 0:01:17]} 29. Rcf1 {[%clk 0:00:41]}  f6 {[%clk 0:01:16]} 30. c3 {[%clk 0:00:39]}  Rce6 {[%clk 0:01:10]} 31. Bf2 {[%clk 0:00:36]}  Nxf2+ {[%clk 0:01:09]} 32. R3xf2 {[%clk 0:00:36]}  Qe4 {[%clk 0:01:09]} 33. Qg3 {[%clk 0:00:32]}  Kh8 {[%clk 0:00:51]} 34. Rf4 {[%clk 0:00:30]}  Qe5 {[%clk 0:00:48]} 35. Qf3 {[%clk 0:00:24]}  Rd6 {[%clk 0:00:43]} 36. Rf5 {[%clk 0:00:17]}  Qe4 {[%clk 0:00:43]} 37. Qg3 {[%clk 0:00:16]}  Rd7 {[%clk 0:00:38]} 38. R1f2 {[%clk 0:00:14]}  d4 {[%clk 0:00:35]} 39. cxd4 {[%clk 0:00:11]}  Qxd4 {[%clk 0:00:36]} 40. Kh2 {[%clk 0:00:10]}  Qd6 {[%clk 0:00:35]} 41. R5f4 {[%clk 0:00:10]}  Red8 {[%clk 0:00:29]} 42. Re2 {[%clk 0:00:10]}  Re7 {[%clk 0:00:27]} 43. Ref2 {[%clk 0:00:06]}  Re5 {[%clk 0:00:24]} 44. Kh1 {[%clk 0:00:04]}  Rg5 {[%clk 0:00:21]} 45. Qf3 {[%clk 0:00:05]}  h6 {[%clk 0:00:20]} 46. Rf1 {[%clk 0:00:05]}  Qd2 {[%clk 0:00:19]} 47. Re4 {[%clk 0:00:04]}  Qd3 {[%clk 0:00:12]} 48. Re3 {[%clk 0:00:03]}  Qd5 {[%clk 0:00:11]} 49. Qe2 {[%clk 0:00:03]}  Kh7 {[%clk 0:00:10]} 50. Qc2+ {[%clk 0:00:01]}  f5 {[%clk 0:00:10]} 0-1


[Site "https://www.chess.com"]

[Event "Titled Tuesday Blitz April 25 Late 2023"]
[White "Simonovic, Miroslav"]
[Black "Urbina Perez, Juan Antonio"]
[WhiteFideId "919152"]
[BlackFideId "2217368"]
[WhiteElo "2042"]
[BlackElo "2197"]
[Result "1-0"]
[Round "06"]
[TimeControl "180+2"]
[Date "2023.04.25"]
[WhiteClock "0:01:23"]
[BlackClock "0:01:57"]

1. d4 {[%clk 0:03:00]}  d5 {[%clk 0:02:58]} 2. Bg5 {[%clk 0:03:01]}  f6 {[%clk 0:02:56]} 3. Bh4 {[%clk 0:03:00]}  Nh6 {[%clk 0:02:55]} 4. f3 {[%clk 0:03:00]}  c5 {[%clk 0:02:52]} 5. c3 {[%clk 0:02:58]}  Qb6 {[%clk 0:02:51]} 6. Qb3 {[%clk 0:02:57]}  Qxb3 {[%clk 0:02:48]} 7. axb3 {[%clk 0:02:58]}  cxd4 {[%clk 0:02:49]} 8. cxd4 {[%clk 0:02:58]}  Nf5 {[%clk 0:02:48]} 9. Bf2 {[%clk 0:02:57]}  Nc6 {[%clk 0:02:49]} 10. e3 {[%clk 0:02:53]}  e6 {[%clk 0:02:49]} 11. Bd3 {[%clk 0:02:52]}  Bb4+ {[%clk 0:02:48]} 12. Nd2 {[%clk 0:02:51]}  e5 {[%clk 0:02:46]} 13. dxe5 {[%clk 0:02:45]}  Nxe5 {[%clk 0:02:44]} 14. Bb5+ {[%clk 0:02:41]}  Bd7 {[%clk 0:02:43]} 15. Bxd7+ {[%clk 0:02:41]}  Kxd7 {[%clk 0:02:44]} 16. Ke2 {[%clk 0:02:40]}  Rhe8 {[%clk 0:02:42]} 17. e4 {[%clk 0:02:29]}  dxe4 {[%clk 0:02:42]} 18. Nxe4 {[%clk 0:02:29]}  Nd6 {[%clk 0:02:39]} 19. Rd1 {[%clk 0:02:28]}  Nc6 {[%clk 0:02:28]} 20. Kf1 {[%clk 0:02:19]}  Kc7 {[%clk 0:02:23]} 21. Nxd6 {[%clk 0:02:18]}  Bxd6 {[%clk 0:02:24]} 22. Ne2 {[%clk 0:02:18]}  Rad8 {[%clk 0:02:17]} 23. Nc3 {[%clk 0:02:08]}  a6 {[%clk 0:02:15]} 24. Nd5+ {[%clk 0:01:38]}  Kb8 {[%clk 0:02:14]} 25. Bb6 {[%clk 0:01:36]}  Rd7 {[%clk 0:02:11]} 26. Kf2 {[%clk 0:01:35]}  Be5 {[%clk 0:02:09]} 27. Nc3 {[%clk 0:01:29]}  Rde7 {[%clk 0:02:02]} 28. Rhe1 {[%clk 0:01:25]}  Bc7 {[%clk 0:01:56]} 29. Bxc7+ {[%clk 0:01:23]}  Kxc7 {[%clk 0:01:57]} 30. Nd5+ {[%clk 0:01:23]} 1-0


[Site "https://www.chess.com"]